Workbook

Sheet Sheet1
A1: 材料 | B1: SN400
A2: ヤング係数 | B2: 205000 | C2: N/mm2
A3: F | B3: 235 | C3: N/mm2
A4: 限界細長比Λ | B4: =SQRT(PI()^2*B2/(0.6*B3)) -> 119.7890848
A6: 諸条件
A7: スパン | B7: 20000 | C7: mm
A8: 荷重 | B8: 30 | C8: kN/m
A10: 設計変数 | E10: 下限 | F10: 上限
A11: ライズ | B11: 2000 | C11: mm | E11: =0.1*B7 -> 2000 | F11: =0.5*B7 -> 10000
A12: 選択断面No. | B12: 1
A15: 円弧中心・半径の算定
B16: x | C16: y
A17: Ａ点 | B17: 0 | C17: 0 | E17: a11 | F17: =2*(B18-B17) -> 20000
A18: Ｂ点 | B18: =B7/2 -> 10000 | C18: =B11 -> 2000 | E18: a12 | F18: =2*(C18-C17) -> 4000
A19: Ｃ点 | B19: =B7 -> 20000 | C19: =C17 -> 0 | E19: a21 | F19: =2*(B19-B18) -> 20000
E20: a22 | F20: =2*(C19-C18) -> -4000
B21: x0 | C21: y0 | E21: b11 | F21: =B18^2-B17^2+C18^2-C17^2 -> 104000000
A22: 円弧中心点 | B22: =1/F23*(F20*F21-F18*F22) -> 10000 | C22: =1/F23*(-F19*F21+F17*F22) -> -24000 | E22: b21 | F22: =B19^2-B18^2+C19^2-C18^2 -> 296000000
B23: Ｒ | E23: det|A| | F23: =F17*F20-F18*F19 -> -160000000
A24: 円弧半径 | B24: =SQRT((B17-B22)^2+(C17-C22)^2) -> 26000 | C24: mm
B25: φ(rad) | C25: 角度
B26: =ACOS((B24-B11)/B24) -> 0.3947911197 | C26: =B26/PI()*180 -> 22.61986495
A28: アーチの反力
A29: ⊿= | B29: =B26-3*COS(B26)*SIN(B26)+2*B26*COS(B26)^2 -> 0.002482495283
A30: VA=VC= | B30: =B8*B26*B24/10^3 -> 307.9370734 | C30: kN | D30: 合力
A31: HA=-HC= | B31: =B8*B24/10^3/(4*B29)*(-8*fai+(9-4*fai^2)*SIN(2*fai)-10*fai*COS(2*fai)) -> 756.7572782 | C31: kN | D31: =SQRT(B30^2+B31^2) -> 817.0109052 | E31: kN
A33: アーチの応力
A34: 分割 | B34: 10
A35: ⊿φ | B35: =fai/B34 -> 0.03947911197
B37: α | C37: y | D37: Mx | E37: N | G37: σb/fb | H37: σc/fc | I37: 検定比
B38: rad | C38: mm | D38: kN*m | E38: kN
A39: =B34 -> 10 | B39: =A39*$B$35 -> 0.3947911197 | C39: =$B$24*(COS(B39)-COS(fai)) -> 0 | D39: =$B$8*($B$24/10^3)^2*(fai*SIN(fai)+COS(fai)-B39*SIN(B39)-COS(B39))-$B$31*(C39/10^3) -> -2.251532294e-12 | E39: =-$B$8*($B$24/10^3)*B39*SIN(B39)-$B$31*COS(B39) -> -816.9825158 | G39: 0 | H39: =ABS(E39)*10^3/VLOOKUP($B$12,sec,6,0)/$B$60 -> 24.97057827 | I39: =G39+H39 -> 24.97057827
A40: =A39-1 -> 9 | B40: =A40*$B$35 -> 0.3553120077 | C40: 375.9877998 | D40: -5.180648482 | E40: =-$B$8*($B$24/10^3)*B40*SIN(B40)-$B$31*COS(B40) -> -805.9021375 | G40: =ABS(D40)*10^6/VLOOKUP($B$12,sec,8,0)/$B$59 -> 0.448016535 | H40: 24.63191318 | I40: =G40+H40 -> 25.07992972
A41: =A40-1 -> 8 | B41: 0.3158328958 | C41: 713.9881125 | D41: -7.330019528 | E41: -795.8447962 | G41: =ABS(D41)*10^6/VLOOKUP($B$12,sec,8,0)/$B$59 -> 0.6338916763 | H41: 24.32451661 | I41: 24.95840829
A42: 7 | B42: 0.2763537838 | C42: 1013.474199 | D42: -7.266369615 | E42: -786.8577655 | G42: 0.6283873049 | H42: 24.04983343 | I42: 24.67822074
A43: 6 | B43: 0.2368746718 | C43: 1273.979341 | D43: -5.717784188 | E43: -778.9830503 | G43: 0.4944674144 | H43: 23.80914751 | I43: 24.30361492
A44: 5 | B44: 0.1973955598 | C44: 1495.097568 | D44: -3.319908522 | E44: -772.2572775 | G44: 0.2871018788 | H44: 23.60357831 | I44: 23.89068019
A45: 4 | B45: 0.1579164479 | C45: 1676.484289 | D45: -0.6139703061 | E45: -766.7116013 | G45: 0.05309544744 | H45: 23.43407806 | I45: 23.48717351
A46: 3 | B46: 0.1184373359 | C46: 1817.856833 | D46: 1.954901431 | E46: -762.3716223 | G46: 0.1690576322 | H46: 23.30142922 | I46: 23.47048685
A47: 2 | B47: 0.07895822394 | C47: 1918.994883 | D47: 4.039057123 | E47: -759.2573209 | G47: 0.3492930245 | H47: 23.20624248 | I47: 23.5555355
A48: =A47-1 -> 1 | B48: 0.03947911197 | C48: 1979.740828 | D48: 5.38940398 | E48: -757.3830062 | G48: 0.4660694709 | H48: 23.14895517 | I48: 23.61502465
A49: 0 | B49: 0 | C49: 2000 | D49: 5.856177302 | E49: -756.7572782 | G49: 0.5064354921 | H49: 23.12983018 | I49: 23.63626567
C51: max | D51: =MAX(D39:D49) -> 5.856177302 | H51: max | I51: =MAX(I39:I49) -> 25.07992972
C52: min | D52: =MIN(D39:D49) -> -7.330019528 | E52: =MIN(E39:E49) -> -816.9825158
A55: 細長比、許容応力度
A56: アーチ全長 | B56: =2*B24*fai -> 20529.13822 | C56: mm
A57: λ | B57: =(B56/2)/VLOOKUP(B12,sec,9,0) -> 245.0878878 | E57: λ／Λ | F57: v | G57: λ≦Λ | H57: λ＞Λ
E58: =B57/B4 -> 2.045995161 | F58: =3/2+2/3*E58^2 -> 4.290730799 | G58: =(1-0.4*E58^2)*$B$3/F58 -> -36.93847274 | H58: =0.277*$B$3/(E58)^2 -> 15.55028765
A59: 長期 fb | B59: =B3/1.5 -> 156.6666667 | C59: N/mm2
A60: fc | B60: =IF(B57>B4,H58,G58) -> 15.55028765 | C60: N/mm2
A63: 総重量
A64: γ | B64: 78.5 | C64: kN/㎥
A65: 総重量 | B65: =VLOOKUP(B12,sec,6,0)*B56*B64/10^9 -> 3.390674586 | C65: kN
A68: 多目的最適化
E69: 重みパラメータ
C70: M0 | D70: H0 | E70: w1 | F70: w2
A71: 目的関数 | B71: =E71*B65/C71+F71*B31/D71 -> 0.03575031613 | C71: 94.84320566 | D71: 756.7572782 | E71: 1 | F71: =1-E71 -> 0
A73: 結果を記録 | B73: w1 | C73: w2 | D73: 総重量 | E73: 水平反力 | F73: 目的関数 | G73: ライズ | H73: 断面No. | I73: 2018-01-15T14:00:39
B74: 0 | C74: 1 | D74: 47.6657517 | E74: 150 | F74: 0.1982141491 | G74: 10000 | H74: 65 | I74: 2018-01-15T14:01:33
B75: 0.1 | C75: 0.9 | D75: 30.04630975 | E75: 150.6431814 | F75: 0.2108376414 | G75: 9968.431016 | H75: 74 | I75: 2018-01-15T14:02:18
B76: 0.2 | C76: 0.8 | D76: 28.1650055 | E76: 152.5603911 | F76: 0.2206707908 | G76: 9874.886777 | H76: 95 | I76: 2018-01-15T14:03:05
B77: 0.3 | C77: 0.7 | D77: 28.1650055 | E77: 152.5603911 | F77: 0.2302074259 | G77: 9874.886777 | H77: 95 | I77: 2018-01-15T14:03:52
B78: 0.4 | C78: 0.6 | D78: 23.0256129 | E78: 172.6234315 | F78: 0.2339758527 | G78: 8948.560352 | H78: 94 | I78: 2018-01-15T14:04:39
B79: 0.5 | C79: 0.5 | D79: 23.0256129 | E79: 172.6234315 | F79: 0.2354424715 | G79: 8948.560352 | H79: 94 | I79: 2018-01-15T14:05:26
B80: 0.6 | C80: 0.4 | D80: 16.5262678 | E80: 231.5232505 | F80: 0.2269254738 | G80: 6808.573087 | H80: 31 | I80: 2018-01-15T14:06:08
B81: 0.7 | C81: 0.3 | D81: 16.5262678 | E81: 231.5232505 | F81: 0.2137561815 | G81: 6808.573087 | H81: 31 | I81: 2018-01-15T14:06:24
B82: 0.8 | C82: 0.2 | D82: 10.9363647 | E82: 340.8510081 | F82: 0.182329945 | G82: 4561.302258 | H82: 30 | I82: 2018-01-15T14:06:52
B83: 0.9 | C83: 0.1 | D83: 10.93636499 | E83: 340.8509709 | F83: 0.1488199421 | G83: 4561.302781 | H83: 30 | I83: 2018-01-15T14:07:34
B84: 1 | C84: 0 | D84: 10.07891946 | E84: 584.9967915 | F84: 0.1062692829 | G84: 2601.706956 | H84: 30 | I84: 2018-01-15T14:08:15

Sheet Sheet2
B1: 1 | C1: =B1+1 -> 2 | D1: =C1+1 -> 3 | E1: 4 | F1: 5 | G1: 6 | H1: 7 | I1: 8 | J1: 9
A3: E | B3: 205000 | C3: N/mm2
A4: F | B4: 235 | C4: N/mm2 | D4: SN400B
B6: 断面no. | C6: H | D6: B | E6: t1 | F6: t2 | G6: 断面積 | H6: 断面２次 | I6: 断面係数 | J6: 断面2次半径
G7: A | H7: Iy | I7: Zy | J7: i
A8: ＪＩＳ | B8: 1 | C8: 100 | D8: 100 | E8: 6 | F8: 8 | G8: =C8*D8-(D8-E8)*(C8-2*F8) -> 2104 | H8: =(C8^3*D8-(D8-E8)*(C8-2*F8)^3)/12 -> 3690485.333 | I8: =H8/(C8/2) -> 73809.70667 | J8: =SQRT(H8/G8) -> 41.8811766
B9: =B8+1 -> 2 | C9: 125 | D9: 125 | E9: 6.5 | F9: 9 | G9: =C9*D9-(D9-E9)*(C9-2*F9) -> 2945.5 | H9: =(C9^3*D9-(D9-E9)*(C9-2*F9)^3)/12 -> 8247752.458 | I9: =H9/(C9/2) -> 131964.0393 | J9: =SQRT(H9/G9) -> 52.91615689
B10: 3 | C10: 150 | D10: 150 | E10: 7 | F10: 10 | G10: 3910 | H10: 16006583.33 | I10: 213421.1111 | J10: 63.9824611
B11: 4 | C11: 175 | D11: 175 | E11: 7.5 | F11: 11 | G11: 4997.5 | H11: 28164706.46 | I11: 321882.3595 | J11: 75.07169354
B12: 5 | C12: 200 | D12: 200 | E12: 8 | F12: 12 | G12: 6208 | H12: 46104917.33 | I12: 461049.1733 | J12: 86.17826964
B13: 6 | C13: 250 | D13: 250 | E13: 9 | F13: 14 | G13: 8998 | H13: 105788119.3 | I13: 846304.9547 | J13: 108.4290003
B14: 7 | C14: 300 | D14: 300 | E14: 10 | F14: 15 | G14: 11700 | H14: 199327500 | I14: 1328850 | J14: 130.5240915
B15: 8 | C15: 350 | D15: 350 | E15: 12 | F15: 19 | G15: 17044 | H15: 395061761.3 | I15: 2257495.779 | J15: 152.2462959
B16: 9 | C16: 400 | D16: 400 | E16: 13 | F16: 21 | G16: 21454 | H16: 653615871.3 | I16: 3268079.357 | J16: 174.5448971
B17: =B16+1 -> 10 | C17: 148 | D17: 100 | E17: 6 | F17: 9 | G17: 2580 | H17: 9805100 | I17: 132501.3514 | J17: 61.64759814
B18: =B17+1 -> 11 | C18: 194 | D18: 150 | E18: 6 | F18: 9 | G18: 3756 | H18: 25845988 | I18: 266453.4845 | J18: 82.95332098
B19: =B18+1 -> 12 | C19: 244 | D19: 175 | E19: 7 | F19: 11 | G19: 5404 | H19: 58674261.33 | I19: 480936.5683 | J19: 104.1996224
B20: 13 | C20: 294 | D20: 200 | E20: 8 | F20: 12 | G20: 6960 | H20: 108608400 | I20: 738832.6531 | J20: 124.9185942
B21: 14 | C21: 340 | D21: 250 | E21: 9 | F21: 14 | G21: 9808 | H21: 208875829.3 | I21: 1228681.349 | J21: 145.9331191
B22: 15 | C22: 390 | D22: 300 | E22: 10 | F22: 16 | G22: 13180 | H22: 374142793.3 | I22: 1918680.991 | J22: 168.484901
B23: 16 | C23: 440 | D23: 300 | E23: 11 | F23: 18 | G23: 15244 | H23: 541562725.3 | I23: 2461648.752 | J23: 188.4841835
B24: 17 | C24: 488 | D24: 300 | E24: 11 | F24: 18 | G24: 15772 | H24: 681371557.3 | I24: 2792506.383 | J24: 207.8493239
B25: 18 | C25: 588 | D25: 300 | E25: 12 | F25: 20 | G25: 18576 | H25: 1132838592 | I25: 3853192.49 | J25: 246.9493666
B26: 19 | C26: 700 | D26: 300 | E26: 13 | F26: 24 | G26: 22876 | H26: 1946069925 | I26: 5560199.787 | J26: 291.6682639
B27: 20 | C27: 800 | D27: 300 | E27: 14 | F27: 26 | G27: 26072 | H27: 2825535691 | I27: 7063839.227 | J27: 329.2025761
B28: 21 | C28: 890 | D28: 299 | E28: 15 | F28: 23 | G28: 26414 | H28: 3336803429 | I28: 7498434.671 | J28: 355.4252068
B29: 22 | C29: 900 | D29: 300 | E29: 16 | F29: 28 | G29: 30304 | H29: 3996325845 | I29: 8880724.101 | J29: 363.145333
B30: 23 | C30: 912 | D30: 302 | E30: 18 | F30: 34 | G30: 35728 | H30: 4861514133 | I30: 10661215.2 | J30: 368.8768694
B31: 24 | C31: 918 | D31: 303 | E31: 19 | F31: 37 | G31: 38458 | H31: 5305246803 | I31: 11558271.9 | J31: 371.415008
B32: 25 | C32: 150 | D32: 75 | E32: 5 | F32: 7 | G32: 1730 | H32: 6420256.667 | I32: 85603.42222 | J32: 60.91905302
B33: 26 | C33: 175 | D33: 90 | E33: 5 | F33: 8 | G33: 2235 | H33: 11722586.25 | I33: 133972.4143 | J33: 72.42240699
B34: 27 | C34: 200 | D34: 100 | E34: 5.5 | F34: 8 | G34: 2612 | H34: 17609322.67 | I34: 176093.2267 | J34: 82.10786118
B35: 28 | C35: 250 | D35: 125 | E35: 6 | F35: 9 | G35: 3642 | H35: 38929334 | I35: 311434.672 | J35: 103.3876148
B36: 29 | C36: 300 | D36: 150 | E36: 6.5 | F36: 9 | G36: 4533 | H36: 69325191 | I36: 462167.94 | J36: 123.6666732
B37: 30 | C37: 350 | D37: 175 | E37: 7 | F37: 11 | G37: 6146 | H37: 131234688.7 | I37: 749912.5067 | J37: 146.1261845
B38: 31 | C38: 400 | D38: 200 | E38: 8 | F38: 13 | G38: 8192 | H38: 229648682.7 | I38: 1148243.413 | J38: 167.4314381
B39: 32 | C39: 450 | D39: 200 | E39: 9 | F39: 14 | G39: 9398 | H39: 322589452.7 | I39: 1433730.901 | J39: 185.2709641
B40: 33 | C40: 500 | D40: 200 | E40: 10 | F40: 16 | G40: 11080 | H40: 460365493.3 | I40: 1841461.973 | J40: 203.8362879
B41: 34 | C41: 600 | D41: 200 | E41: 11 | F41: 17 | G41: 13026 | H41: 744186438 | I41: 2480621.46 | J41: 239.0206035
A42: ハイパーＨ | B42: 35 | C42: 400 | D42: 200 | E42: 9 | F42: 12 | G42: 8184 | H42: 220578432 | I42: 1102892.16 | J42: 164.1718576
B43: 36 | C43: 400 | D43: 200 | E43: 9 | F43: 16 | G43: 9712 | H43: 273443157.3 | I43: 1367215.787 | J43: 167.7950686
B44: 37 | C44: 400 | D44: 200 | E44: 9 | F44: 19 | G44: 10858 | H44: 311612979.3 | I44: 1558064.897 | J44: 169.4075847
B45: 38 | C45: 400 | D45: 200 | E45: 9 | F45: 22 | G45: 12004 | H45: 348538245.3 | I45: 1742691.227 | J45: 170.3971108
B46: 39 | C46: 400 | D46: 200 | E46: 12 | F46: 22 | G46: 13072 | H46: 359817749.3 | I46: 1799088.747 | J46: 165.9091246
B47: 40 | C47: 450 | D47: 200 | E47: 9 | F47: 12 | G47: 8634 | H47: 288251982 | I47: 1281119.92 | J47: 182.7174935
B48: 41 | C48: 450 | D48: 200 | E48: 9 | F48: 16 | G48: 10162 | H48: 356282107.3 | I48: 1583476.033 | J48: 187.2437848
B49: 42 | C49: 450 | D49: 200 | E49: 9 | F49: 19 | G49: 11308 | H49: 405625429.3 | I49: 1802779.686 | J49: 189.3955135
B50: 43 | C50: 450 | D50: 200 | E50: 9 | F50: 22 | G50: 12454 | H50: 453552295.3 | I50: 2015787.979 | J50: 190.8355381
B51: 44 | C51: 450 | D51: 200 | E51: 12 | F51: 19 | G51: 12544 | H51: 423109061.3 | I51: 1880484.717 | J51: 183.6572768
B52: 45 | C52: 450 | D52: 200 | E52: 12 | F52: 22 | G52: 13672 | H52: 470283149.3 | I52: 2090147.33 | J52: 185.4657346
B53: 46 | C53: 450 | D53: 200 | E53: 12 | F53: 25 | G53: 14800 | H53: 516083333.3 | I53: 2293703.704 | J53: 186.7364332
B54: 47 | C54: 450 | D54: 250 | E54: 9 | F54: 16 | G54: 11762 | H54: 431658640.7 | I54: 1918482.847 | J54: 191.5709407
B55: 48 | C55: 450 | D55: 250 | E55: 9 | F55: 19 | G55: 13208 | H55: 493919062.7 | I55: 2195195.834 | J55: 193.3790239
B56: 49 | C56: 450 | D56: 250 | E56: 9 | F56: 22 | G56: 14654 | H56: 554392228.7 | I56: 2463965.461 | J56: 194.5048672
B57: 50 | C57: 450 | D57: 250 | E57: 12 | F57: 22 | G57: 15872 | H57: 571123082.7 | I57: 2538324.812 | J57: 189.692006
B58: 51 | C58: 450 | D58: 250 | E58: 12 | F58: 25 | G58: 17300 | H58: 629104166.7 | I58: 2796018.519 | J58: 190.6945272
B59: 52 | C59: 450 | D59: 250 | E59: 12 | F59: 28 | G59: 18728 | H59: 685371650.7 | I59: 3046096.225 | J59: 191.3010562
B60: 53 | C60: 500 | D60: 200 | E60: 9 | F60: 12 | G60: 9084 | H60: 366718032 | I60: 1466872.128 | J60: 200.9220358
B61: 54 | C61: 500 | D61: 200 | E61: 9 | F61: 16 | G61: 10612 | H61: 451823557.3 | I61: 1807294.229 | J61: 206.3411348
B62: 55 | C62: 500 | D62: 200 | E62: 9 | F62: 19 | G62: 11758 | H62: 513772879.3 | I62: 2055091.517 | J62: 209.0349283
B63: 56 | C63: 500 | D63: 200 | E63: 9 | F63: 22 | G63: 12904 | H63: 574133845.3 | I63: 2296535.381 | J63: 210.9329359
B64: 57 | C64: 500 | D64: 200 | E64: 12 | F64: 19 | G64: 13144 | H64: 538425661.3 | I64: 2153702.645 | J64: 202.3946833
B65: 58 | C65: 500 | D65: 200 | E65: 12 | F65: 22 | G65: 14272 | H65: 597838549.3 | I65: 2391354.197 | J65: 204.6678084
B66: 59 | C66: 500 | D66: 200 | E66: 12 | F66: 25 | G66: 15400 | H66: 655708333.3 | I66: 2622833.333 | J66: 206.3454947
B67: 60 | C67: 500 | D67: 250 | E67: 9 | F67: 16 | G67: 12212 | H67: 545560090.7 | I67: 2182240.363 | J67: 211.3624813
B68: 61 | C68: 500 | D68: 250 | E68: 9 | F68: 19 | G68: 13658 | H68: 623726512.7 | I68: 2494906.051 | J68: 213.6995208
B69: 62 | C69: 500 | D69: 250 | E69: 9 | F69: 22 | G69: 15104 | H69: 699888778.7 | I69: 2799555.115 | J69: 215.2625729
B70: 63 | C70: 500 | D70: 250 | E70: 12 | F70: 22 | G70: 16472 | H70: 723593482.7 | I70: 2894373.931 | J70: 209.5917368
B71: 64 | C71: 500 | D71: 250 | E71: 12 | F71: 25 | G71: 17900 | H71: 796854166.7 | I71: 3187416.667 | J71: 210.9905035
B72: 65 | C72: 500 | D72: 250 | E72: 12 | F72: 28 | G72: 19328 | H72: 868187050.7 | I72: 3472748.203 | J72: 211.9401286
B73: 66 | C73: 500 | D73: 300 | E73: 12 | F73: 19 | G73: =C73*D73-(D73-E73)*(C73-2*F73) -> 16944 | H73: =(C73^3*D73-(D73-E73)*(C73-2*F73)^3)/12 -> 758332928 | I73: =H73/(C73/2) -> 3033331.712 | J73: =SQRT(H73/G73) -> 211.5543626
B74: 67 | C74: 500 | D74: 300 | E74: 12 | F74: 22 | G74: 18672 | H74: 849348416 | I74: 3397393.664 | J74: 213.2787178
B75: 68 | C75: 500 | D75: 300 | E75: 12 | F75: 25 | G75: 20400 | H75: 938000000 | I75: 3752000 | J75: 214.43039
B76: 69 | C76: 500 | D76: 300 | E76: 16 | F76: 22 | G76: 20496 | H76: 880954688 | I76: 3523818.752 | J76: 207.3204913
B77: 70 | C77: 500 | D77: 300 | E77: 16 | F77: 25 | G77: 22200 | H77: 968375000 | I77: 3873500 | J77: 208.8552022
B78: 71 | C78: 500 | D78: 300 | E78: 16 | F78: 28 | G78: 23904 | H78: 1053494912 | I78: 4213979.648 | J78: 209.9331059
B79: 72 | C79: 550 | D79: 200 | E79: 9 | F79: 12 | G79: 9534 | H79: 456539082 | I79: 1660142.116 | J79: 218.8272521
B80: 73 | C80: 550 | D80: 200 | E80: 9 | F80: 16 | G80: 11062 | H80: 560630007.3 | I80: 2038654.572 | J80: 225.1237646
B81: 74 | C81: 550 | D81: 200 | E81: 9 | F81: 19 | G81: 12208 | H81: 636617829.3 | I81: 2314973.925 | J81: 228.3584773
B82: 75 | C82: 550 | D82: 200 | E82: 9 | F82: 22 | G82: 13354 | H82: 710845395.3 | I82: 2584892.347 | J82: 230.7182194
B83: =B82+1 -> 76 | C83: 550 | D83: 200 | E83: 12 | F83: 19 | G83: 13744 | H83: 670172261.3 | I83: 2436990.041 | J83: 220.8191078
B84: 77 | C84: 550 | D84: 200 | E84: 12 | F84: 22 | G84: 14872 | H84: 743233949.3 | I84: 2702668.907 | J84: 223.5517537
B85: 78 | C85: 550 | D85: 200 | E85: 12 | F85: 25 | G85: 16000 | H85: 814583333.3 | I85: 2962121.212 | J85: 225.6356761
B86: 79 | C86: 550 | D86: 250 | E86: 9 | F86: 16 | G86: 12662 | H86: 674726540.7 | I86: 2453551.057 | J86: 230.8408912
B87: 80 | C87: 550 | D87: 250 | E87: 9 | F87: 19 | G87: 14108 | H87: 770606462.7 | I87: 2802205.319 | J87: 233.7133917
B88: 81 | C88: 550 | D88: 250 | E88: 9 | F88: 22 | G88: 15554 | H88: 864265328.7 | I88: 3142783.013 | J88: 235.7232923
B89: 82 | C89: 550 | D89: 250 | E89: 12 | F89: 22 | G89: 17072 | H89: 896653882.7 | I89: 3260559.573 | J89: 229.1765702
B90: 83 | C90: 550 | D90: 250 | E90: 12 | F90: 25 | G90: 18500 | H90: 986979166.7 | I90: 3589015.152 | J90: 230.9766768
B91: 84 | C91: 550 | D91: 250 | E91: 12 | F91: 28 | G91: 19928 | H91: 1075162451 | I91: 3909681.639 | J91: 232.2764538
B92: 85 | C92: 550 | D92: 250 | E92: 16 | F92: 28 | G92: 21904 | H92: 1115347045 | I92: 4055807.438 | J92: 225.6541345
B93: 86 | C93: 550 | D93: 250 | E93: 16 | F93: 32 | G93: 23776 | H93: 1227716341 | I93: 4464423.059 | J93: 227.2373009
B94: 87 | C94: 550 | D94: 300 | E94: 12 | F94: 16 | G94: 15816 | H94: 823571032 | I94: 2994803.753 | J94: 228.1929396
B95: 88 | C95: 550 | D95: 300 | E95: 12 | F95: 19 | G95: 17544 | H95: 938149528 | I95: 3411452.829 | J95: 231.2446655
B96: 89 | C96: 550 | D96: 300 | E96: 12 | F96: 22 | G96: 19272 | H96: 1050073816 | I96: 3818450.24 | J96: 233.4245451
B97: 90 | C97: 550 | D97: 300 | E97: 12 | F97: 25 | G97: 21000 | H97: 1159375000 | I97: 4215909.091 | J97: 234.9645363
B98: 91 | C98: 550 | D98: 300 | E98: 16 | F98: 22 | G98: 21296 | H98: 1093258555 | I98: 3975485.653 | J98: 226.5752267
B99: 92 | C99: 550 | D99: 300 | E99: 16 | F99: 25 | G99: 23000 | H99: 1201041667 | I99: 4367424.242 | J99: 228.5152137
B100: 93 | C100: 550 | D100: 300 | E100: 16 | F100: 28 | G100: 24704 | H100: 1306268779 | I100: 4750068.286 | J100: 229.9495871
B101: 94 | C101: 600 | D101: 200 | E101: 9 | F101: 12 | G101: 9984 | H101: 558277632 | I101: 1860925.44 | J101: 236.4682447
B102: 95 | C102: 600 | D102: 200 | E102: 9 | F102: 16 | G102: 11512 | H102: 683263957.3 | I102: 2277546.524 | J102: 243.6233246
B103: 96 | C103: 600 | D103: 200 | E103: 9 | F103: 19 | G103: 12658 | H103: 774722779.3 | I103: 2582409.264 | J103: 247.3948287
B104: 97 | C104: 600 | D104: 200 | E104: 9 | F104: 22 | G104: 13804 | H104: 864249445.3 | I104: 2880831.484 | J104: 250.2171536
B105: 98 | C105: 600 | D105: 200 | E105: 12 | F105: 19 | G105: 14344 | H105: 819098861.3 | I105: 2730329.538 | J105: 238.9642991
B106: 99 | C106: 600 | D106: 200 | E106: 12 | F106: 22 | G106: 15472 | H106: 907219349.3 | I106: 3024064.498 | J106: 242.149136
B107: 100 | C107: 600 | D107: 200 | E107: 12 | F107: 25 | G107: 16600 | H107: 993458333.3 | I107: 3311527.778 | J107: 244.6362352
B108: 101 | C108: 600 | D108: 200 | E108: 12 | F108: 28 | G108: 17728 | H108: 1077836117 | I108: 3592787.058 | J108: 246.5735538
B109: 102 | C109: 600 | D109: 250 | E109: 9 | F109: 16 | G109: 13112 | H109: 819720490.7 | I109: 2732401.636 | J109: 250.0336296
B110: 103 | C110: 600 | D110: 250 | E110: 9 | F110: 19 | G110: 14558 | H110: 935121412.7 | I110: 3117071.376 | J110: 253.4446589
B111: 104 | C111: 600 | D111: 250 | E111: 12 | F111: 19 | G111: 16244 | H111: 979497494.7 | I111: 3264991.649 | J111: 245.5586145
B112: 105 | C112: 600 | D112: 250 | E112: 12 | F112: 22 | G112: 17672 | H112: 1091054283 | I112: 3636847.609 | J112: 248.4736432
B113: 106 | C113: 600 | D113: 250 | E113: 12 | F113: 25 | G113: 19100 | H113: 1200229167 | I113: 4000763.889 | J113: 250.6775287
B114: 107 | C114: 600 | D114: 250 | E114: 12 | F114: 28 | G114: 20528 | H114: 1307047851 | I114: 4356826.169 | J114: 252.3320547
B115: 108 | C115: 600 | D115: 250 | E115: 16 | F115: 28 | G115: 22704 | H115: 1360710912 | I115: 4535703.04 | J115: 244.8114604
B116: 109 | C116: 600 | D116: 250 | E116: 16 | F116: 32 | G116: 24576 | H116: 1497182208 | I116: 4990607.36 | J116: 246.8207852
B117: 110 | C117: 600 | D117: 300 | E117: 12 | F117: 19 | G117: 18144 | H117: 1139896128 | I117: 3799653.76 | J117: 250.6490833
B118: 111 | C118: 600 | D118: 300 | E118: 12 | F118: 22 | G118: 19872 | H118: 1274889216 | I118: 4249630.72 | J118: 253.2884781
B119: 112 | C119: 600 | D119: 300 | E119: 12 | F119: 25 | G119: 21600 | H119: 1407000000 | I119: 4690000 | J119: 255.2232139
B120: 113 | C120: 600 | D120: 300 | E120: 12 | F120: 28 | G120: 23328 | H120: 1536259584 | I120: 5120865.28 | J120: 256.6218014
B121: 114 | C121: 600 | D121: 300 | E121: 16 | F121: 22 | G121: 22096 | H121: 1332182421 | I121: 4440608.071 | J121: 245.5415645
B122: 115 | C122: 600 | D122: 300 | E122: 16 | F122: 25 | G122: 23800 | H122: 1462458333 | I122: 4874861.111 | J122: 247.8867264
B123: 116 | C123: 600 | D123: 300 | E123: 16 | F123: 28 | G123: 25504 | H123: 1589922645 | I123: 5299742.151 | J123: 249.6800529
B124: 117 | C124: 600 | D124: 300 | E124: 16 | F124: 32 | G124: 27776 | H124: 1755554475 | I124: 5851848.249 | J124: 251.4040695
G126: =MAX(G8:G124) -> 38458

Sheet Sheet3
